bitfinex-derivatives/quotes_SOLF0:USTF0_20260312
["timestamp","ask_amount","ask_price","bid_price","bid_amount"]
[1773357472506,28.47768812,86.909,86.87,0.13]
[1773357472815,28.633293,86.899,86.87,0.13]
[1773357473013,3.38906539,86.92,86.87,0.13]
[1773357473214,28.63366733,86.919,86.881,0.07296513]
[1773357475118,27.80058572,86.909,86.881,0.07296513]
[1773357476017,3.38906539,86.93,86.881,0.07296513]
[1773357476208,27.80060868,86.929,86.881,0.07296513]
[1773357476609,27.80060868,86.929,86.88,3.38906539]
[1773357477011,27.80060868,86.929,86.882,10.357]
[1773357478022,27.87679088,86.919,86.874,10.358]
[1773357478222,31.26585627,86.91,86.874,10.358]
[1773357479021,31.26585627,86.91,86.883,0.07306052]
[1773357480324,28.27398559,86.899,86.85,0.13]
[1773357480625,3.38906539,86.89,86.85,0.13]
[1773357480812,28.14398559,86.894,86.85,0.13]
[1773357481015,28.18461294,86.909,86.85,3.51906539]
[1773357481724,0.07267522,86.888,86.85,3.51906539]
[1773357481925,28.18461294,86.909,86.86,3.38906539]
[1773357482827,28.18461294,86.909,86.884,10.357]
[1773357483121,28.18461294,86.909,86.86,3.38906539]
[1773357483919,28.18461294,86.909,86.876,10.358]
[1773357487222,28.18461294,86.909,86.86,3.38906539]
[1773357488925,28.18461294,86.909,86.882,10.357]
[1773357489929,28.73639388,86.899,86.85,0.13]
[1773357490125,28.73639388,86.889,86.85,0.13]
[1773357491031,28.73639388,86.889,86.858,10.36]
[1773357492733,28.73639388,86.889,86.865,10.359]
[1773357496434,28.73639388,86.889,86.85,0.13]
[1773357496831,36.24,86.936,86.85,3.51906539]
[1773357496832,28.68932444,86.901,86.85,3.51906539]
[1773357497037,28.68932444,86.914,86.86,3.38906539]
[1773357497938,28.68932444,86.914,86.881,10.357]
[1773357499530,28.68932444,86.914,86.887,10.356]
[1773357499931,28.68932444,86.914,86.878,0.07275081]
[1773357501038,28.68932444,86.914,86.88,10.357]
[1773357502038,32.07706682,86.91,86.88,10.357]
[1773357502336,32.07706682,86.91,86.878,0.07275081]
[1773357502637,28.68800143,86.9,86.871,10.358]
[1773357503238,28.68178543,86.913,86.878,10.357]
[1773357503431,28.68178543,86.913,86.86,3.38906539]
[1773357504639,28.68178543,86.913,86.875,10.358]
[1773357505440,28.67963598,86.909,86.875,10.358]
[1773357505743,28.67963598,86.909,86.881,10.357]
[1773357509838,28.67963598,86.909,86.887,10.356]
[1773357510534,28.63096689,86.926,86.901,10.354]
[1773357510733,28.63096689,86.926,86.88,3.38906539]
[1773357511536,28.63096689,86.926,86.89,3.38906539]
[1773357512842,28.63096689,86.926,86.906,10.354]
[1773357517048,28.63096689,86.926,86.898,10.355]
[1773357521240,28.63096689,86.926,86.89,13.7439909]
[1773357521443,28.63096689,86.926,86.88,3.3879909]
[1773357521646,28.77574986,86.909,86.85,3.5179909]
[1773357522246,28.77574986,86.909,86.86,3.3879909]
[1773357522843,28.77574986,86.909,86.872,10.358]
[1773357523952,28.77574986,86.909,86.879,10.357]
[1773357525162,28.59859702,86.925,86.88,3.3879909]
[1773357525846,28.59859702,86.925,86.887,10.356]
[1773357526047,28.59864322,86.919,86.87,3.3879909]
[1773357526454,28.59864322,86.919,86.871,10.358]
[1773357526962,28.59864322,86.919,86.86,3.3879909]
[1773357527156,28.59864322,86.919,86.87,3.3879909]
[1773357527556,28.59864322,86.919,86.877,10.357]
[1773357536562,28.59864322,86.919,86.889,0.07249058]
[1773357542268,2.34,86.95,86.9,3.3879909]
[1773357542269,28.84208682,86.945,86.9,3.3879909]
[1773357543871,2.34,86.95,86.92,13.7399909]
[1773357544568,31.18409421,86.95,86.899,21.01505349]
[1773357544772,31.18409421,86.95,86.91,3.3879909]
[1773357544969,2.34,86.95,86.92,3.3879909]
[1773357545975,2.34,86.95,86.931,10.351]
[1773357546669,0.00067522,86.95,86.931,10.351]
[1773357546972,29.13560407,86.975,86.931,10.351]
[1773357547168,29.00560407,86.975,86.94,0.13]
[1773357547572,29.00560407,86.975,86.94,3.5179909]
[1773357547874,0.13,86.98,86.943,10.349]
[1773357548971,0.13,86.98,86.94,0.13]
[1773357549175,29.24286942,86.979,86.94,0.13]
[1773357550969,29.24286942,86.979,86.94,10.48]
[1773357551375,29.24286942,86.979,86.94,13.8679909]
[1773357551671,36.24,87.008,86.94,3.5179909]
[1773357551873,35.87549813,87.11,86.916,36.24]
[1773357551874,29.32004799,87.045,86.944,160.997]
[1773357552072,29.19004799,87.045,86.998,0.13]
[1773357552272,36.22,87.07,86.998,0.13]
[1773357552472,36.22,87.07,86.978,0.13]
[1773357552473,3.3879909,87.02,86.978,0.13]
[1773357552674,36.22,87.07,86.968,0.13]
[1773357552675,3.3879909,87.01,86.968,0.13]
[1773357552873,36.22,87.07,86.975,10.346]
[1773357552874,0.52,87.007,86.975,10.346]
[1773357553179,0.52,87.007,86.92,20.94336375]
[1773357553180,36.09,87.073,86.998,0.97986072]
[1773357553376,160.618,87.15,86.997,0.13]
[1773357553377,3.3879909,87.06,87.001,0.97986072]
[1773357553575,10.6718879,87.127,86.997,0.13]
[1773357553576,3.3879909,87.04,86.997,0.13]
[1773357553880,0.13,87.078,86.997,0.13]
[1773357554180,27.62275873,87.059,87.007,10.342]
[1773357554472,27.62275873,87.039,86.997,0.13]
[1773357554868,27.62275873,87.029,86.997,0.13]
[1773357555472,27.62275873,87.077,86.998,3.07849391]
[1773357555682,27.62275873,87.059,87.01,3.3879909]
[1773357555980,27.62275873,87.049,87.0,3.3879909]
[1773357556769,27.62275873,87.049,87.0,13.7309909]
[1773357559181,27.62275873,87.075,87.02,3.3879909]
[1773357559473,27.62275873,87.069,87.017,2.51095212]
[1773357559678,27.62275873,87.059,87.003,2.51095212]
[1773357559881,27.62275873,87.059,87.02,3.3879909]
[1773357560283,27.62275873,87.077,87.021,2.51401716]
[1773357560575,0.13,87.078,87.01,13.7299909]
[1773357560576,26.57989488,87.069,87.01,13.7299909]
[1773357560779,36.2,87.102,86.997,0.13]
[1773357560780,26.57989488,87.083,87.05,3.3879909]
[1773357561178,26.90018382,87.109,87.073,0.13]
[1773357561577,36.2,87.141,87.073,0.13]
[1773357561578,3.3879909,87.1,87.073,0.13]
[1773357561778,3.3879909,87.1,87.063,0.13]
[1773357561979,0.26,87.096,87.063,0.13]
[1773357563082,26.54065223,87.079,87.02,3.3879909]
[1773357563378,26.54065223,87.069,87.013,3.67201591]
[1773357563584,26.54065223,87.069,87.03,3.3879909]
[1773357563878,26.54065223,87.069,87.013,3.67201591]
[1773357564074,26.54065223,87.059,87.013,0.13]
[1773357565281,26.54065223,87.049,87.013,0.13]
[1773357565880,26.54065223,87.039,87.013,0.13]
[1773357566178,36.2,87.085,86.983,10.475]
[1773357566179,26.54065223,87.029,86.983,0.13]
[1773357566379,26.54065223,87.019,86.983,0.13]
[1773357566584,3.3879909,87.01,86.983,0.13]
[1773357567586,26.54065223,87.019,86.983,0.13]
[1773357568178,26.54065223,87.016,86.983,0.13]
[1773357568378,26.54065223,87.016,86.963,0.13]
[1773357569488,26.54065223,87.013,86.963,0.13]
[1773357571293,26.54065223,87.012,86.963,0.13]
[1773357571994,26.54065223,86.999,86.936,10.35]
[1773357572190,26.54065223,86.999,86.917,6.46013514]
[1773357572986,26.54065223,86.989,86.917,6.46013514]
[1773357574495,26.54065223,86.987,86.922,10.352]
[1773357574690,26.54065223,86.987,86.917,6.46013514]
[1773357575197,26.54065223,86.982,86.92,10.352]
[1773357575893,36.2,86.995,86.92,10.352]
[1773357575894,26.54065223,86.98,86.92,10.352]
[1773357576897,26.54065223,86.978,86.92,10.352]
[1773357578095,26.54065223,86.978,86.916,7.17840222]
[1773357579887,26.54065223,86.978,86.933,10.481]
[1773357585301,26.54065223,86.978,86.933,0.13]
[1773357586696,26.54065223,86.978,86.933,7.07170957]
[1773357587102,26.54065223,86.978,86.941,10.35]
[1773357587900,26.54065223,86.978,86.933,0.13]
[1773357588401,26.54065223,86.978,86.933,7.07873761]
[1773357588796,26.54065223,86.978,86.941,10.35]
[1773357589799,3.38435029,87.0,86.958,10.348]
[1773357590002,25.51605625,86.999,86.955,6.98546912]
[1773357590209,25.51605625,86.999,86.96,10.37305616]
[1773357590404,25.51605625,87.019,86.961,6.98870587]
[1773357590706,3.38435029,87.01,86.961,6.98870587]
[1773357591096,25.51605625,87.019,86.961,6.98870587]
[1773357591899,25.51605625,87.019,86.98,10.345]
[1773357592606,25.51605625,87.019,86.971,10.346]
[1773357593805,25.51605625,87.019,86.979,10.345]
[1773357594302,25.51605625,87.019,86.96,7.22287061]
[1773357595603,25.51605625,87.019,86.969,10.346]
[1773357595808,25.51605625,87.019,86.946,7.21759067]
[1773357596102,25.51688077,87.015,86.946,7.21759067]
[1773357598111,25.51688077,87.01,86.959,10.348]
[1773357600509,25.51688077,87.007,86.949,10.349]
[1773357600713,25.51688077,87.007,86.946,7.21759067]
[1773357601513,25.51688077,87.002,86.934,6.32278319]
[1773357603011,25.51688077,86.995,86.933,0.13]
[1773357603320,25.51688077,86.979,86.933,0.13]
[1773357604116,25.51688077,86.974,86.933,0.13]
[1773357604712,25.51688077,86.968,86.933,0.13]
[1773357605809,25.51688077,86.968,86.934,10.351]
[1773357606712,25.51688077,86.995,86.943,10.35]
[1773357607515,25.51688077,86.995,86.951,10.348]
[1773357611115,25.51688077,86.995,86.958,10.348]
[1773357611816,25.51688077,86.995,86.965,10.347]
[1773357613813,25.51688077,86.995,86.947,5.58156394]
[1773357615622,3.38405819,86.98,86.947,5.58156394]
[1773357616010,3.38405819,86.99,86.947,5.58156394]
[1773357616216,3.38405819,87.0,86.95,3.38405819]
[1773357616514,3.38405819,87.0,86.951,5.60102707]
[1773357617515,28.90093896,87.0,86.967,10.347]
[1773357618122,25.51688077,86.989,86.967,10.347]
[1773357621924,25.51688077,86.989,86.936,5.65514961]
[1773357621925,3.38405819,86.98,86.938,13.83061784]
[1773357622121,31.18011521,86.98,86.936,5.65514961]
[1773357623121,31.18011521,86.98,86.941,10.35]
[1773357623328,3.38405819,86.97,86.941,10.35]
[1773357624729,3.38405819,86.97,86.947,10.349]
[1773357625027,31.18011521,86.98,86.947,10.349]
[1773357627534,31.18011521,86.98,86.939,10.35]
[1773357627834,31.18011521,86.98,86.936,5.65514961]
[1773357629033,31.18011521,86.98,86.947,10.349]
[1773357635531,27.79605702,86.999,86.955,16.15634458]
[1773357636637,27.79605702,86.989,86.948,16.16390406]
[1773357637334,3.38405819,87.0,86.967,10.347]
[1773357637726,1.95,87.02,86.968,16.17560839]
[1773357637931,3.38405819,87.01,86.968,16.17560839]
[1773357638837,27.79605702,87.017,86.98,10.345]
[1773357639033,27.79605702,87.017,86.946,36.2]
[1773357639034,27.79605702,87.048,86.99,3.38405819]
[1773357639233,3.38405819,87.04,86.991,16.13339179]
[1773357639433,27.79605702,87.048,87.018,0.13]
[1773357640140,0.39,87.04,87.018,0.13]
[1773357643934,27.14218297,87.07,87.019,16.43330822]
[1773357644135,27.14218297,87.07,86.983,50.03061784]
[1773357644136,27.14218297,87.07,87.021,16.05102172]
[1773357644438,30.39121671,87.07,87.05,0.13]
[1773357645240,30.65121671,87.07,87.05,0.13]
[1773357645641,27.27218297,87.07,87.05,0.13]
[1773357646143,30.65121671,87.07,87.05,0.13]
[1773357646347,3.37903374,87.05,87.02,0.13]
[1773357646544,27.14218297,87.049,87.02,0.13]
[1773357646746,0.65,87.055,87.02,0.13]
[1773357647043,0.65,87.055,87.021,16.49835231]
[1773357647949,0.65,87.055,87.029,10.339]
[1773357648248,27.14218297,87.076,87.021,16.49835231]
[1773357648539,27.01218297,87.076,87.056,0.13]
[1773357649150,27.01218297,87.076,87.046,0.13]
[1773357649350,0.39,87.071,87.046,0.13]
[1773357651247,3.37903374,87.07,87.046,0.13]
[1773357651447,3.37903374,87.06,87.036,0.13]
[1773357651646,27.26306556,87.059,87.01,3.37903374]
[1773357651843,3.37903374,87.04,86.992,16.64403384]
[1773357652246,27.26306556,87.049,86.992,16.64403384]
[1773357652749,27.26306556,87.049,87.0,3.37903374]
[1773357653348,3.37903374,87.04,86.992,16.64403384]
[1773357653848,27.26306556,87.049,87.011,10.341]
[1773357655252,27.26306556,87.049,87.003,10.342]
[1773357655453,26.688749,87.049,87.003,10.342]
[1773357655654,3.37903374,87.04,86.992,16.64403384]
[1773357655852,26.688749,87.049,86.992,16.64403384]
[1773357656050,3.37903374,87.04,86.99,3.37903374]
[1773357656253,3.37903374,87.05,86.992,17.26869279]
[1773357656653,0.91,87.051,87.0,3.37903374]
[1773357657253,3.37903374,87.05,87.004,10.342]
[1773357657452,27.26306556,87.049,87.0,3.37903374]
[1773357657659,27.26306556,87.049,87.006,17.31361668]
[1773357657960,27.26306556,87.049,87.006,0.13]
[1773357659861,27.26306556,87.049,87.006,10.472]
[1773357660852,27.26306556,87.049,87.006,27.67382423]
[1773357661059,27.26306556,87.05,87.01,10.342]
[1773357661655,27.26306556,87.05,87.006,0.13]
[1773357662056,27.26306556,87.05,87.01,20.59430321]
[1773357662760,27.26306556,87.05,87.016,10.341]
[1773357663758,3.37903374,87.04,87.006,0.13]
[1773357663959,27.26306556,87.039,87.006,0.13]
[1773357664158,27.26306556,87.039,87.006,10.472]
[1773357666769,0.91,87.051,87.006,0.13]
[1773357666967,0.91,87.051,87.02,3.37903374]
[1773357667370,0.91,87.051,87.028,10.339]
[1773357667565,0.91,87.051,87.011,17.31598037]
[1773357667566,27.26306556,87.066,87.03,3.37903374]
[1773357667864,27.26306556,87.066,86.973,34.53]
[1773357667865,27.13306556,87.08,87.056,0.13]
[1773357671075,30.5120993,87.08,87.046,0.13]
[1773357671277,27.52306556,87.073,87.046,0.13]
[1773357675186,27.52306556,87.073,87.046,10.467]
[1773357675683,0.26,87.073,87.046,10.467]
[1773357677383,0.26,87.073,87.046,0.13]
[1773357677384,27.52306556,87.073,87.046,0.13]
[1773357677576,27.52306556,87.073,87.036,0.13]
[1773357677577,27.26306556,87.069,87.036,0.13]
[1773357677780,30.6420993,87.06,87.036,0.13]
[1773357678081,27.26306556,87.06,87.036,0.13]
[1773357683591,27.26306556,87.06,87.037,10.338]
[1773357684689,0.39,87.066,87.044,10.338]
[1773357684887,26.11869175,87.089,87.04,21.20998989]
[1773357685384,26.11869175,87.089,87.069,0.13]
[1773357685385,25.98869175,87.089,87.069,0.13]
[1773357686089,26.24869175,87.089,87.049,0.13]
[1773357686286,3.37903374,87.08,87.03,3.37903374]
[1773357686489,14.17388265,87.142,87.019,36.31]
[1773357686490,3.37903374,87.06,87.019,0.13]
[1773357687287,26.11869175,87.059,87.019,0.13]
[1773357687691,26.11869175,87.049,87.019,0.13]
[1773357690186,27.02869175,87.064,87.019,0.13]
[1773357690388,29.49772549,87.06,87.019,0.13]
[1773357690891,29.49772549,87.06,87.028,10.339]
[1773357692488,26.11869175,87.06,87.028,10.339]
[1773357695490,29.49772549,87.06,87.019,0.13]
[1773357695694,26.11869175,87.049,87.019,0.13]
[1773357696292,3.37903374,87.06,87.019,18.96067868]
[1773357696697,29.49772549,87.06,87.019,18.96067868]
[1773357696900,29.49772549,87.06,87.029,10.339]
[1773357697097,29.49772549,87.06,87.019,0.13]
[1773357697493,26.11869175,87.049,87.009,0.13]
[1773357698902,26.11869175,87.049,87.01,10.342]
[1773357699598,26.11869175,87.049,87.018,10.341]
[1773357699796,26.11869175,87.085,87.019,18.72189523]
[1773357700000,26.11869175,87.085,86.97,160.949]
[1773357700001,26.11869175,87.126,87.028,18.72189523]
[1773357700193,3.24903374,87.12,87.056,10.336]
[1773357700393,3.37903374,87.11,87.076,0.13]
[1773357700592,10.325,87.147,87.076,0.13]
[1773357700593,26.11869175,87.109,87.076,0.13]
[1773357700797,26.11869175,87.129,87.08,3.37903374]
[1773357700996,0.65,87.11,87.08,3.37903374]
[1773357701197,26.11869175,87.148,87.09,3.37903374]
[1773357701398,26.11869175,87.148,87.11,3.37903374]
[1773357701597,25.98869175,87.148,87.118,0.13]
[1773357701792,25.98869175,87.148,87.108,0.13]
[1773357702292,0.52,87.138,87.11,3.37083135]
[1773357702496,0.52,87.138,87.108,0.13]
[1773357702899,0.52,87.138,87.12,3.37083135]
[1773357703296,0.52,87.138,87.069,13.83061784]
[1773357703297,3.37083135,87.18,87.13,3.37083135]
[1773357703496,26.41444597,87.159,87.118,0.13]
[1773357703797,26.41444597,87.159,87.108,0.13]
[1773357704402,26.41444597,87.143,87.108,0.13]
[1773357704602,26.41444597,87.143,87.098,0.13]
[1773357704603,0.52,87.136,87.098,0.13]
[1773357705003,26.93444597,87.136,87.098,0.13]
[1773357706907,26.93444597,87.136,87.088,0.13]
[1773357707204,26.41444597,87.128,87.088,0.13]
[1773357709096,26.41444597,87.144,87.089,19.70474359]
[1773357709400,26.28444597,87.144,87.124,0.13]
[1773357709802,26.28444597,87.144,87.114,0.13]
[1773357710201,0.39,87.139,87.114,0.13]
[1773357712112,27.93829683,87.139,87.114,0.13]
[1773357712407,0.52,87.134,87.104,0.13]
[1773357712706,9.02928013,87.17,87.073,10.334]
[1773357712707,27.54829683,87.128,87.073,10.334]
[1773357712907,27.54829683,87.123,87.073,10.334]
[1773357713111,0.57431656,87.093,87.073,10.334]
[1773357713407,0.00031656,87.093,87.073,10.334]
[1773357714708,0.00031656,87.093,87.085,10.333]
[1773357717104,0.00031656,87.124,87.085,29.8212209]
[1773357717304,0.00031656,87.124,87.101,19.4882209]
[1773357718304,0.00031656,87.124,87.089,10.332]
[1773357719308,0.00031656,87.124,87.087,19.49391334]
[1773357719309,0.00031656,87.124,87.097,10.331]
[1773357719509,0.00031656,87.124,87.098,19.60842581]
[1773357721309,0.00031656,87.124,87.11,19.48563794]
[1773357721712,27.54829683,87.189,87.11,19.48563794]
[1773357722006,27.41829683,87.189,87.115,19.61529012]
[1773357722407,10.321,87.182,87.128,10.328]
[1773357723615,10.321,87.182,87.136,10.327]
[1773357723818,9.02928013,87.19,87.136,10.327]
[1773357723819,10.32,87.19,87.136,10.327]
[1773357724018,27.54829683,87.189,87.136,10.327]
[1773357724212,27.54829683,87.189,87.128,19.29891458]
[1773357724523,27.54829683,87.186,87.114,0.13]
[1773357725209,27.54829683,87.179,87.122,10.328]
[1773357725410,27.54829683,87.179,87.114,20.50958261]
[1773357725612,27.54829683,87.176,87.129,10.327]
[1773357726015,27.54829683,87.156,87.09,26.31326841]
[1773357726210,27.54829683,87.14,87.095,26.31326841]
[1773357727010,27.54829683,87.14,87.103,10.33]
[1773357727816,0.39,87.141,87.111,10.33]
[1773357728817,0.39,87.141,87.103,10.33]
[1773357730123,0.39,87.141,87.105,10.33]
[1773357730826,0.39,87.141,87.112,10.329]
[1773357733118,0.39,87.141,87.104,26.31326841]
[1773357733316,27.93829683,87.141,87.09,26.31326841]
[1773357733719,27.93829683,87.141,87.1,29.68572354]
[1773357734225,0.39,87.141,87.1,29.68572354]
[1773357734720,30.92075196,87.14,87.1,26.31326841]
[1773357734924,30.92075196,87.14,87.09,3.37245513]
[1773357735326,27.54829683,87.14,87.09,3.37245513]
[1773357735521,27.54829683,87.14,87.102,10.331]
[1773357736012,27.54829683,87.14,87.099,26.31326841]
[1773357736216,0.39,87.141,87.116,10.329]
[1773357736415,0.39,87.141,87.099,26.31326841]
[1773357736614,27.54829683,87.14,87.087,36.14]
[1773357737924,27.54829683,87.14,87.101,10.331]
[1773357740423,27.54829683,87.14,87.087,36.14]
[1773357740424,26.06820078,87.182,87.109,26.31326841]
[1773357740622,26.06820078,87.182,87.111,27.92488916]
[1773357740818,25.93820078,87.182,87.142,0.13]
[1773357741019,10.322,87.179,87.142,0.13]
[1773357741619,0.52,87.172,87.142,0.13]
[1773357742528,0.52,87.172,87.143,10.326]
[1773357743425,26.06820078,87.2,87.144,27.92488916]
[1773357743625,26.06820078,87.2,87.124,13.83061784]
[1773357743626,25.93820078,87.2,87.18,0.13]
[1773357744021,25.93820078,87.2,87.17,0.13]
[1773357744428,0.39,87.195,87.17,0.13]
[1773357745718,14.51969031,87.219,87.17,28.05488916]
[1773357745919,25.93820078,87.218,87.189,0.13]
[1773357746120,36.14,87.218,87.159,0.13]
[1773357746319,9.03095769,87.2,87.149,0.13]
[1773357746831,0.91,87.194,87.149,0.13]
[1773357747624,0.91,87.194,87.151,10.325]
[1773357748231,0.91,87.194,87.161,10.324]
[1773357748434,0.91,87.194,87.149,0.13]
[1773357748832,26.97820078,87.194,87.149,0.13]
[1773357749238,26.97820078,87.194,87.149,28.05488916]
[1773357749435,26.97820078,87.194,87.149,0.13]
[1773357749841,26.06820078,87.191,87.149,0.13]
[1773357750739,26.06820078,87.189,87.139,0.13]
[1773357750939,26.06820078,87.189,87.129,0.13]
[1773357750940,1.17,87.184,87.129,0.13]
[1773357751140,26.06820078,87.183,87.129,0.13]
[1773357751839,26.06820078,87.177,87.129,0.13]
[1773357752948,26.06820078,87.176,87.129,0.13]
[1773357755549,26.06820078,87.176,87.13,27.92488916]
[1773357756155,26.06820078,87.176,87.129,0.13]
[1773357756838,26.06820078,87.164,87.129,0.13]
[1773357757039,26.06820078,87.164,87.103,10.331]
[1773357757244,26.06820078,87.164,87.1,27.92488916]
[1773357757841,26.06820078,87.162,87.1,27.92488916]
[1773357758148,26.06820078,87.162,87.089,0.13]
[1773357758650,26.06820078,87.159,87.102,10.331]
[1773357758854,26.06820078,87.159,87.089,0.13]
[1773357759151,26.06820078,87.155,87.099,10.461]
[1773357759351,26.06820078,87.155,87.099,0.13]
[1773357759748,26.06820078,87.145,87.099,0.13]
[1773357763356,26.06820078,87.145,87.099,27.06540924]
[1773357764150,26.06820078,87.145,87.103,10.33]
[1773357764854,26.06820078,87.145,87.11,10.33]
[1773357765055,26.06820078,87.145,87.099,27.06540924]
[1773357766958,26.05739361,87.166,87.099,27.06540924]
[1773357767254,26.05739361,87.166,87.109,27.06540924]
[1773357768053,36.14,87.187,87.135,26.93540924]
[1773357768253,26.05739361,87.189,87.135,26.93540924]
[1773357768455,25.92739361,87.189,87.157,0.13]
[1773357769355,0.39,87.183,87.157,0.13]
[1773357770456,27.63798695,87.177,87.137,0.13]
[1773357770654,27.63798695,87.171,87.137,0.13]
[1773357770862,27.63798695,87.166,87.102,27.76647498]
[1773357771656,10.323,87.165,87.115,10.329]
[1773357771852,27.63798695,87.164,87.115,10.329]
[1773357772367,10.324,87.162,87.105,10.33]
[1773357772562,27.63798695,87.161,87.105,10.33]
[1773357774962,10.324,87.16,87.105,10.33]
[1773357775168,27.63798695,87.159,87.105,10.33]
[1773357775668,27.63798695,87.138,87.087,0.13]
[1773357776759,27.63798695,87.138,87.093,10.332]
[1773357778266,27.63798695,87.132,87.087,0.13]
[1773357779063,27.63798695,87.156,87.087,0.13]
[1773357779567,27.63798695,87.149,87.103,10.33]
[1773357779958,27.63798695,87.149,87.097,27.89647498]
[1773357780163,27.63798695,87.149,87.097,0.13]
[1773357780869,27.63798695,87.132,87.097,0.13]
[1773357781869,10.327,87.131,87.097,0.13]
[1773357782068,37.96498695,87.131,87.097,0.13]
[1773357782864,27.63798695,87.131,87.097,0.13]
[1773357785069,27.63798695,87.142,87.097,0.13]
[1773357785473,1.17,87.152,87.098,27.76647498]
[1773357785774,1.17,87.152,87.11,3.37087087]
[1773357786875,1.17,87.152,87.113,10.329]
[1773357787568,1.17,87.152,87.116,10.329]
[1773357789074,27.63798695,87.149,87.1,27.76647498]
[1773357789573,1.17,87.152,87.1,27.76647498]
[1773357790374,1.17,87.152,87.115,10.329]
[1773357791673,1.17,87.152,87.1,27.76647498]
[1773357791674,1.17,87.152,87.116,27.76647498]
[1773357792882,1.17,87.152,87.116,38.09547498]
[1773357796778,28.80798695,87.152,87.108,10.33]
[1773357797382,10.326,87.144,87.098,27.76647498]
[1773357797578,27.63798695,87.129,87.077,27.89647498]
[1773357798385,36.14,87.132,87.077,27.89647498]
[1773357798880,36.14,87.132,87.081,27.76647498]
[1773357801078,73.78221789,87.132,87.081,27.76647498]
[1773357801389,27.31521789,87.131,87.081,27.76647498]
[1773357802187,10.327,87.13,87.081,27.76647498]
[1773357802382,27.31521789,87.129,87.081,27.76647498]
[1773357802885,36.14,87.132,87.081,27.76647498]
[1773357802886,27.31521789,87.126,87.081,27.76647498]
[1773357803591,27.31521789,87.115,87.077,0.13]
[1773357803779,1.43,87.142,87.051,26.73108127]
[1773357803780,27.31521789,87.109,87.051,26.73108127]
[1773357804088,27.31521789,87.107,87.051,26.73108127]
[1773357804287,27.31521789,87.092,87.067,0.001]
[1773357804482,27.31521789,87.092,87.047,0.13]
[1773357804986,9.02860242,87.11,87.057,0.001]
[1773357804987,27.31521789,87.088,87.057,0.001]
[1773357805589,37.64921789,87.076,87.037,0.13]
[1773357806089,27.31521789,87.075,87.037,0.13]
[1773357806896,10.334,87.074,87.037,0.13]
[1773357807085,27.31521789,87.073,87.037,0.13]
[1773357807286,27.31521789,87.073,87.003,36.14]
[1773357807287,27.31521789,87.069,87.006,26.73108127]
[1773357807692,27.31521789,87.051,87.027,0.001]
[1773357807895,10.61633393,87.103,86.977,0.13]
[1773357807896,72.50382031,87.05,86.987,26.86108127]
[1773357808095,63.47521789,87.049,86.987,26.86108127]
[1773357808589,36.16,87.049,87.007,26.86108127]
[1773357808993,27.31521789,87.049,87.007,26.86108127]
[1773357809289,27.31521789,87.047,87.007,0.13]
[1773357809492,27.31521789,87.047,87.007,0.001]
[1773357810790,27.31521789,87.032,87.007,0.001]
[1773357811294,27.31521789,87.048,87.007,0.001]
[1773357811593,10.337,87.046,87.007,0.001]
[1773357811788,37.65221789,87.046,87.007,0.001]
[1773357811989,27.31521789,87.045,87.007,0.001]
[1773357812296,27.31521789,87.019,86.987,0.13]
[1773357813189,27.31521789,87.014,86.987,0.001]
[1773357813391,27.31521789,87.013,86.977,0.001]
[1773357814192,36.16,87.014,86.977,0.001]
[1773357814193,27.31521789,86.999,86.977,0.001]
[1773357814695,36.16,87.014,86.977,0.001]
[1773357814989,27.31521789,87.013,86.977,0.001]
[1773357815191,27.31521789,87.011,86.977,0.001]
[1773357815696,10.342,87.006,86.977,0.001]
[1773357815997,27.31521789,87.011,86.977,0.001]
[1773357817594,37.65721789,87.005,86.977,0.001]
[1773357817797,27.31521789,87.005,86.977,0.001]